[Event "Titled Tuesday Blitz April 18 Early 2023"]
[White "Manukian, Artak"]
[Black "Tasev, Dejan"]
[WhiteFideId "13301373"]
[BlackFideId "936618"]
[WhiteElo "2130"]
[BlackElo "2244"]
[Result "1/2-1/2"]
[Round "07"]
[TimeControl "180+2"]
[Date "2023.04.18"]
[WhiteClock "0:00:30"]
[BlackClock "0:00:24"]

1. e4 {[%clk 0:03:00]}  e5 {[%clk 0:02:58]} 2. Nf3 {[%clk 0:03:01]}  Nc6 {[%clk 0:02:58]} 3. d4 {[%clk 0:03:01]}  exd4 {[%clk 0:02:58]} 4. Nxd4 {[%clk 0:03:02]}  Bc5 {[%clk 0:02:58]} 5. Nxc6 {[%clk 0:03:02]}  bxc6 {[%clk 0:02:58]} 6. Bc4 {[%clk 0:03:01]}  d6 {[%clk 0:02:57]} 7. Qh5 {[%clk 0:02:57]}  Qe7 {[%clk 0:02:49]} 8. O-O {[%clk 0:02:53]}  Nf6 {[%clk 0:02:48]} 9. Qh4 {[%clk 0:02:50]}  O-O {[%clk 0:02:42]} 10. Bg5 {[%clk 0:02:49]}  h6 {[%clk 0:02:40]} 11. Bxf6 {[%clk 0:02:47]}  Qxf6 {[%clk 0:02:40]} 12. Qxf6 {[%clk 0:02:46]}  gxf6 {[%clk 0:02:41]} 13. Nd2 {[%clk 0:02:41]}  a5 {[%clk 0:02:38]} 14. a4 {[%clk 0:02:37]}  Re8 {[%clk 0:02:35]} 15. Rfe1 {[%clk 0:02:23]}  Re7 {[%clk 0:02:31]} 16. Rad1 {[%clk 0:02:17]}  Bd7 {[%clk 0:02:31]} 17. Kf1 {[%clk 0:02:14]}  Rae8 {[%clk 0:02:28]} 18. Bd3 {[%clk 0:02:10]}  Rb8 {[%clk 0:02:18]} 19. b3 {[%clk 0:02:03]}  Bb4 {[%clk 0:02:17]} 20. Re2 {[%clk 0:02:03]}  Bxd2 {[%clk 0:02:16]} 21. Rdxd2 {[%clk 0:02:02]}  c5 {[%clk 0:02:16]} 22. f3 {[%clk 0:01:56]}  Bc6 {[%clk 0:02:11]} 23. Bc4 {[%clk 0:01:54]}  Re5 {[%clk 0:02:01]} 24. Bd5 {[%clk 0:01:53]}  Bd7 {[%clk 0:01:58]} 25. g4 {[%clk 0:01:51]}  Kg7 {[%clk 0:01:54]} 26. Kf2 {[%clk 0:01:47]}  Rb4 {[%clk 0:01:48]} 27. Bc4 {[%clk 0:01:45]}  Bc6 {[%clk 0:01:45]} 28. Bd5 {[%clk 0:01:35]}  Bd7 {[%clk 0:01:44]} 29. Re3 {[%clk 0:01:25]}  Rb8 {[%clk 0:01:41]} 30. Bc4 {[%clk 0:01:24]}  Rh8 {[%clk 0:01:35]} 31. Rd5 {[%clk 0:01:20]}  h5 {[%clk 0:01:32]} 32. Rxe5 {[%clk 0:01:14]}  fxe5 {[%clk 0:01:31]} 33. Kg3 {[%clk 0:01:04]}  h4+ {[%clk 0:01:26]} 34. Kf2 {[%clk 0:01:03]}  f6 {[%clk 0:01:26]} 35. h3 {[%clk 0:01:01]}  Kg6 {[%clk 0:01:20]} 36. Rd3 {[%clk 0:00:58]}  Kg5 {[%clk 0:01:19]} 37. Ke3 {[%clk 0:00:58]}  Bc6 {[%clk 0:01:17]} 38. Bd5 {[%clk 0:00:58]}  Bd7 {[%clk 0:01:14]} 39. Bc4 {[%clk 0:00:58]}  Rb8 {[%clk 0:01:12]} 40. Rc3 {[%clk 0:00:58]}  Rb4 {[%clk 0:01:11]} 41. Be2 {[%clk 0:00:58]}  Rd4 {[%clk 0:01:11]} 42. Rd3 {[%clk 0:00:56]}  Bc6 {[%clk 0:01:08]} 43. c4 {[%clk 0:00:49]}  Bb7 {[%clk 0:01:05]} 44. Bf1 {[%clk 0:00:49]}  c6 {[%clk 0:01:00]} 45. Be2 {[%clk 0:00:48]}  d5 {[%clk 0:00:57]} 46. exd5 {[%clk 0:00:48]}  cxd5 {[%clk 0:00:57]} 47. Rxd4 {[%clk 0:00:43]}  cxd4+ {[%clk 0:00:52]} 48. Kf2 {[%clk 0:00:40]}  dxc4 {[%clk 0:00:51]} 49. bxc4 {[%clk 0:00:39]}  Bc6 {[%clk 0:00:50]} 50. Bd1 {[%clk 0:00:38]}  Kf4 {[%clk 0:00:49]} 51. c5 {[%clk 0:00:36]}  f5 {[%clk 0:00:39]} 52. gxf5 {[%clk 0:00:36]}  Kxf5 {[%clk 0:00:38]} 53. Bc2+ {[%clk 0:00:35]}  Kf4 {[%clk 0:00:38]} 54. Be4 {[%clk 0:00:35]}  Bxa4 {[%clk 0:00:33]} 55. c6 {[%clk 0:00:35]}  Bb3 {[%clk 0:00:33]} 56. c7 {[%clk 0:00:35]}  Be6 {[%clk 0:00:33]} 57. Bb7 {[%clk 0:00:35]}  a4 {[%clk 0:00:34]} 58. c8=Q {[%clk 0:00:34]}  Bxc8 {[%clk 0:00:33]} 59. Bxc8 {[%clk 0:00:35]}  a3 {[%clk 0:00:34]} 60. Be6 {[%clk 0:00:35]}  d3 {[%clk 0:00:34]} 61. Ba2 {[%clk 0:00:32]}  e4 {[%clk 0:00:33]} 62. fxe4 {[%clk 0:00:32]}  Kxe4 {[%clk 0:00:32]} 63. Ke1 {[%clk 0:00:32]}  Ke3 {[%clk 0:00:32]} 64. Kd1 {[%clk 0:00:32]}  d2 {[%clk 0:00:29]} 65. Be6 {[%clk 0:00:31]}  Kd3 {[%clk 0:00:29]} 66. Ba2 {[%clk 0:00:31]}  Kc3 {[%clk 0:00:29]} 67. Bf7 {[%clk 0:00:31]}  Kd3 {[%clk 0:00:29]} 68. Ba2 {[%clk 0:00:31]}  Ke3 {[%clk 0:00:30]} 69. Be6 {[%clk 0:00:31]}  Kd3 {[%clk 0:00:24]} 70. Ba2 {[%clk 0:00:30]} 1/2-1/2


[Site "https://www.chess.com"]

[Event "Titled Tuesday Blitz April 18 Early 2023"]
[White "Moksh Amit Doshi"]
[Black "Mrudul Dehankar"]
[WhiteFideId "25064967"]
[BlackFideId "25096990"]
[WhiteElo "2297"]
[BlackElo "2139"]
[Result "1-0"]
[Round "07"]
[TimeControl "180+2"]
[Date "2023.04.18"]
[WhiteClock "0:00:18"]
[BlackClock "0:00:01"]

1. Nf3 {[%clk 0:02:50]}  Nf6 {[%clk 0:02:59]} 2. c4 {[%clk 0:02:49]}  e6 {[%clk 0:02:48]} 3. Nc3 {[%clk 0:02:46]}  b6 {[%clk 0:02:42]} 4. g3 {[%clk 0:02:34]}  Bb7 {[%clk 0:02:42]} 5. Bg2 {[%clk 0:02:34]}  Be7 {[%clk 0:02:34]} 6. O-O {[%clk 0:02:35]}  O-O {[%clk 0:02:33]} 7. d4 {[%clk 0:02:30]}  Bb4 {[%clk 0:02:31]} 8. Qc2 {[%clk 0:02:18]}  Bxc3 {[%clk 0:02:21]} 9. Qxc3 {[%clk 0:02:19]}  d6 {[%clk 0:02:21]} 10. b4 {[%clk 0:01:57]}  Nbd7 {[%clk 0:02:17]} 11. Bb2 {[%clk 0:01:58]}  a5 {[%clk 0:02:15]} 12. a3 {[%clk 0:01:58]}  Qe7 {[%clk 0:02:13]} 13. Rfe1 {[%clk 0:01:53]}  Rfe8 {[%clk 0:02:11]} 14. Qd3 {[%clk 0:01:52]}  e5 {[%clk 0:02:06]} 15. dxe5 {[%clk 0:01:46]}  dxe5 {[%clk 0:02:04]} 16. Qb3 {[%clk 0:01:42]}  h6 {[%clk 0:01:49]} 17. Nxe5 {[%clk 0:01:35]}  Bxg2 {[%clk 0:01:07]} 18. Nxd7 {[%clk 0:01:33]}  Qxd7 {[%clk 0:01:04]} 19. Kxg2 {[%clk 0:01:33]}  Ne4 {[%clk 0:01:02]} 20. Rad1 {[%clk 0:01:28]}  Qe6 {[%clk 0:00:54]} 21. Qc2 {[%clk 0:01:09]}  axb4 {[%clk 0:00:42]} 22. axb4 {[%clk 0:01:10]}  Nd6 {[%clk 0:00:41]} 23. c5 {[%clk 0:01:08]}  Nc4 {[%clk 0:00:39]} 24. Bd4 {[%clk 0:01:06]}  Ra2 {[%clk 0:00:23]} 25. Qc3 {[%clk 0:00:45]}  Rxe2 {[%clk 0:00:16]} 26. Rxe2 {[%clk 0:00:45]}  Qxe2 {[%clk 0:00:16]} 27. Rc1 {[%clk 0:00:46]}  b5 {[%clk 0:00:13]} 28. Bxg7 {[%clk 0:00:43]}  Ne3+ {[%clk 0:00:11]} 29. Kg1 {[%clk 0:00:43]}  Nd1 {[%clk 0:00:07]} 30. Qd4 {[%clk 0:00:34]}  Qe1+ {[%clk 0:00:06]} 31. Kg2 {[%clk 0:00:34]}  Ne3+ {[%clk 0:00:06]} 32. fxe3 {[%clk 0:00:35]}  Qxc1 {[%clk 0:00:06]} 33. Bxh6 {[%clk 0:00:36]}  Qc2+ {[%clk 0:00:06]} 34. Kg1 {[%clk 0:00:32]}  Qb1+ {[%clk 0:00:06]} 35. Kf2 {[%clk 0:00:31]}  Qc2+ {[%clk 0:00:06]} 36. Kf3 {[%clk 0:00:30]}  Qf5+ {[%clk 0:00:06]} 37. Kg2 {[%clk 0:00:27]}  Qe4+ {[%clk 0:00:04]} 38. Kf2 {[%clk 0:00:22]}  Qf5+ {[%clk 0:00:04]} 39. Bf4 {[%clk 0:00:21]}  Qc2+ {[%clk 0:00:02]} 40. Kf3 {[%clk 0:00:20]}  Qf5 {[%clk 0:00:01]} 41. g4 {[%clk 0:00:17]}  Qh7 {[%clk 0:00:01]} 42. Kg3 {[%clk 0:00:18]}  Qh3+ {[%clk 0:00:01]} 43. Kxh3 {[%clk 0:00:18]} 1-0


[Site "https://www.chess.com"]

[Event "Titled Tuesday Blitz April 18 Early 2023"]
[White "arpita_chess"]
[Black "Andrews, Todd"]
[BlackFideId "2012456"]
[WhiteElo "2559"]
[BlackElo "2431"]
[Result "1-0"]
[Round "07"]
[TimeControl "180+2"]
[Date "2023.04.18"]
[WhiteClock "0:00:43"]
[BlackClock "0:00:03"]

1. e4 {[%clk 0:03:00]}  e6 {[%clk 0:02:59]} 2. d4 {[%clk 0:03:00]}  d5 {[%clk 0:03:00]} 3. Nd2 {[%clk 0:03:01]}  Nc6 {[%clk 0:02:59]} 4. Ngf3 {[%clk 0:03:00]}  Nf6 {[%clk 0:03:00]} 5. e5 {[%clk 0:03:00]}  Nd7 {[%clk 0:03:01]} 6. Bb5 {[%clk 0:03:00]}  a6 {[%clk 0:03:00]} 7. Bxc6 {[%clk 0:02:58]}  bxc6 {[%clk 0:03:01]} 8. Nb3 {[%clk 0:02:58]}  a5 {[%clk 0:03:00]} 9. O-O {[%clk 0:02:58]}  a4 {[%clk 0:02:57]} 10. Nbd2 {[%clk 0:02:56]}  Ba6 {[%clk 0:02:57]} 11. Re1 {[%clk 0:02:56]}  c5 {[%clk 0:02:53]} 12. c3 {[%clk 0:02:55]}  a3 {[%clk 0:02:35]} 13. b3 {[%clk 0:02:53]}  cxd4 {[%clk 0:02:35]} 14. Nxd4 {[%clk 0:02:46]}  c5 {[%clk 0:01:49]} 15. Nc2 {[%clk 0:02:40]}  Qa5 {[%clk 0:01:48]} 16. Qf3 {[%clk 0:02:28]}  Qc7 {[%clk 0:01:37]} 17. Qg3 {[%clk 0:02:25]}  g6 {[%clk 0:01:25]} 18. Bxa3 {[%clk 0:02:21]}  Bg7 {[%clk 0:01:25]} 19. f4 {[%clk 0:02:22]}  O-O {[%clk 0:01:24]} 20. Bb2 {[%clk 0:02:16]}  Rae8 {[%clk 0:01:16]} 21. Ne3 {[%clk 0:02:17]}  f6 {[%clk 0:01:15]} 22. exf6 {[%clk 0:02:12]}  Nxf6 {[%clk 0:01:14]} 23. Qf3 {[%clk 0:01:54]}  Nh5 {[%clk 0:01:08]} 24. g3 {[%clk 0:01:54]}  Bb7 {[%clk 0:01:08]} 25. Ng4 {[%clk 0:01:46]}  d4 {[%clk 0:00:53]} 26. Ne4 {[%clk 0:01:46]}  Nxf4 {[%clk 0:00:41]} 27. gxf4 {[%clk 0:01:36]}  Qxf4 {[%clk 0:00:41]} 28. Nef6+ {[%clk 0:01:27]}  Rxf6 {[%clk 0:00:36]} 29. Nxf6+ {[%clk 0:01:27]}  Qxf6 {[%clk 0:00:32]} 30. Qxb7 {[%clk 0:01:28]}  dxc3 {[%clk 0:00:27]} 31. Ba3 {[%clk 0:01:19]}  Qd4+ {[%clk 0:00:17]} 32. Kh1 {[%clk 0:01:11]}  c2 {[%clk 0:00:15]} 33. Rac1 {[%clk 0:01:09]}  Qd3 {[%clk 0:00:11]} 34. Qe4 {[%clk 0:01:08]}  Qh3 {[%clk 0:00:08]} 35. Rxc2 {[%clk 0:01:01]}  Bd4 {[%clk 0:00:09]} 36. Bxc5 {[%clk 0:00:58]}  Bg7 {[%clk 0:00:06]} 37. Qg2 {[%clk 0:00:57]}  Qh4 {[%clk 0:00:06]} 38. Bf2 {[%clk 0:00:55]}  Qh5 {[%clk 0:00:06]} 39. Bg3 {[%clk 0:00:55]}  e5 {[%clk 0:00:06]} 40. Qd5+ {[%clk 0:00:53]}  Kh8 {[%clk 0:00:04]} 41. Rf2 {[%clk 0:00:53]}  h6 {[%clk 0:00:04]} 42. Qf3 {[%clk 0:00:43]}  e4 {[%clk 0:00:03]} 43. Qxh5 {[%clk 0:00:43]}  gxh5 {[%clk 0:00:03]} 44. Rfe2 {[%clk 0:00:43]}  e3 {[%clk 0:00:03]} 45. Rxe3 {[%clk 0:00:43]} 1-0


[Site "https://www.chess.com"]

[Event "Titled Tuesday Blitz April 18 Early 2023"]
[White "Vivas Zamora, Fabian Ernesto"]
[Black "Al-Tarboush, Ward"]
[WhiteFideId "3902480"]
[BlackFideId "7601450"]
[WhiteElo "2262"]
[BlackElo "2265"]
[Result "1-0"]
[Round "07"]
[TimeControl "180+2"]
[Date "2023.04.18"]
[WhiteClock "0:00:03"]
[BlackClock "0:00:49"]

1. e4 {[%clk 0:02:52]}  c5 {[%clk 0:02:52]} 2. Nf3 {[%clk 0:02:51]}  Nc6 {[%clk 0:02:51]} 3. d4 {[%clk 0:02:50]}  cxd4 {[%clk 0:02:51]} 4. Nxd4 {[%clk 0:02:51]}  Nf6 {[%clk 0:02:48]} 5. Nc3 {[%clk 0:02:51]}  e5 {[%clk 0:02:49]} 6. Ndb5 {[%clk 0:02:49]}  d6 {[%clk 0:02:48]} 7. Bg5 {[%clk 0:02:48]}  a6 {[%clk 0:02:48]} 8. Na3 {[%clk 0:02:47]}  b5 {[%clk 0:02:48]} 9. Bxf6 {[%clk 0:02:46]}  gxf6 {[%clk 0:02:48]} 10. Nd5 {[%clk 0:02:46]}  f5 {[%clk 0:02:47]} 11. g3 {[%clk 0:02:46]}  fxe4 {[%clk 0:02:38]} 12. Bg2 {[%clk 0:02:45]}  Be6 {[%clk 0:02:32]} 13. Bxe4 {[%clk 0:02:40]}  Rc8 {[%clk 0:02:32]} 14. Qh5 {[%clk 0:02:31]}  Bg7 {[%clk 0:02:24]} 15. O-O {[%clk 0:02:23]}  Ne7 {[%clk 0:02:20]} 16. Nxe7 {[%clk 0:02:12]}  Qxe7 {[%clk 0:02:21]} 17. Rad1 {[%clk 0:02:10]}  h6 {[%clk 0:02:18]} 18. c3 {[%clk 0:01:32]}  O-O {[%clk 0:02:17]} 19. g4 {[%clk 0:01:02]}  Rcd8 {[%clk 0:02:10]} 20. Bd5 {[%clk 0:00:50]}  Qg5 {[%clk 0:02:04]} 21. Qxg5 {[%clk 0:00:47]}  hxg5 {[%clk 0:02:05]} 22. f3 {[%clk 0:00:44]}  Bxd5 {[%clk 0:01:43]} 23. Rxd5 {[%clk 0:00:45]}  f5 {[%clk 0:01:43]} 24. Nc2 {[%clk 0:00:43]}  fxg4 {[%clk 0:01:40]} 25. fxg4 {[%clk 0:00:44]}  Rf4 {[%clk 0:01:38]} 26. Ne3 {[%clk 0:00:40]}  Re4 {[%clk 0:01:38]} 27. Rf3 {[%clk 0:00:31]}  Rf8 {[%clk 0:01:36]} 28. Rxf8+ {[%clk 0:00:16]}  Bxf8 {[%clk 0:01:37]} 29. Kf2 {[%clk 0:00:14]}  Rf4+ {[%clk 0:01:34]} 30. Ke2 {[%clk 0:00:14]}  Kf7 {[%clk 0:01:32]} 31. b3 {[%clk 0:00:04]}  Ke6 {[%clk 0:01:32]} 32. c4 {[%clk 0:00:03]}  bxc4 {[%clk 0:01:32]} 33. bxc4 {[%clk 0:00:04]}  Be7 {[%clk 0:01:28]} 34. Ra5 {[%clk 0:00:04]}  Rf8 {[%clk 0:01:22]} 35. Rxa6 {[%clk 0:00:04]}  Rb8 {[%clk 0:01:22]} 36. Kf3 {[%clk 0:00:03]}  Rb2 {[%clk 0:01:22]} 37. h3 {[%clk 0:00:03]}  Rh2 {[%clk 0:01:15]} 38. c5 {[%clk 0:00:03]}  Rxh3+ {[%clk 0:01:12]} 39. Ke4 {[%clk 0:00:04]}  Kd7 {[%clk 0:01:08]} 40. c6+ {[%clk 0:00:03]}  Ke6 {[%clk 0:01:03]} 41. Nd5 {[%clk 0:00:02]}  Rh8 {[%clk 0:01:03]} 42. Nxe7 {[%clk 0:00:02]}  Kxe7 {[%clk 0:01:03]} 43. Kd5 {[%clk 0:00:02]}  Rb8 {[%clk 0:00:57]} 44. Ra7+ {[%clk 0:00:02]}  Kf6 {[%clk 0:00:51]} 45. c7 {[%clk 0:00:03]}  Rb5+ {[%clk 0:00:49]} 46. Kxd6 {[%clk 0:00:03]}  Rb6+ {[%clk 0:00:49]} 47. Kd7 {[%clk 0:00:03]} 1-0


[Site "https://www.chess.com"]

[Event "Titled Tuesday Blitz April 18 Early 2023"]
[White "Bruedigam, Martin"]
[Black "kuanysh1981"]
[WhiteFideId "24608033"]
[WhiteElo "2331"]
[BlackElo "2416"]
[Result "1-0"]
[Round "07"]
[TimeControl "180+2"]
[Date "2023.04.18"]
[WhiteClock "0:00:54"]
[BlackClock "0:00:43"]

1. d4 {[%clk 0:03:00]}  Nf6 {[%clk 0:02:58]} 2. c4 {[%clk 0:03:00]}  e6 {[%clk 0:02:57]} 3. Nc3 {[%clk 0:02:58]}  Bb4 {[%clk 0:02:55]} 4. Bd2 {[%clk 0:02:57]}  O-O {[%clk 0:02:54]} 5. e3 {[%clk 0:02:57]}  c5 {[%clk 0:02:52]} 6. Bd3 {[%clk 0:02:45]}  cxd4 {[%clk 0:02:49]} 7. exd4 {[%clk 0:02:46]}  d5 {[%clk 0:02:49]} 8. Nge2 {[%clk 0:02:39]}  dxc4 {[%clk 0:02:48]} 9. Bxc4 {[%clk 0:02:39]}  Nc6 {[%clk 0:02:45]} 10. Bg5 {[%clk 0:02:39]}  a6 {[%clk 0:02:38]} 11. a3 {[%clk 0:02:38]}  Be7 {[%clk 0:02:38]} 12. O-O {[%clk 0:02:35]}  b5 {[%clk 0:02:37]} 13. Bd3 {[%clk 0:02:34]}  Bb7 {[%clk 0:02:37]} 14. Rc1 {[%clk 0:02:34]}  Na5 {[%clk 0:02:30]} 15. Bb1 {[%clk 0:02:32]}  Rc8 {[%clk 0:02:28]} 16. Ng3 {[%clk 0:02:17]}  g6 {[%clk 0:01:58]} 17. h4 {[%clk 0:02:16]}  Qd7 {[%clk 0:01:53]} 18. h5 {[%clk 0:02:12]}  Nc4 {[%clk 0:01:51]} 19. Qe2 {[%clk 0:01:31]}  Rfd8 {[%clk 0:01:43]} 20. Rfd1 {[%clk 0:01:28]}  Nd5 {[%clk 0:01:40]} 21. Bh6 {[%clk 0:01:18]}  Nxc3 {[%clk 0:01:20]} 22. Rxc3 {[%clk 0:01:17]}  Bf6 {[%clk 0:01:16]} 23. hxg6 {[%clk 0:01:11]}  hxg6 {[%clk 0:01:14]} 24. Nh5 {[%clk 0:01:06]}  Bh8 {[%clk 0:01:02]} 25. Rg3 {[%clk 0:01:01]}  Kh7 {[%clk 0:00:49]} 26. Bg5 {[%clk 0:00:57]}  Qd5 {[%clk 0:00:44]} 27. Nf6+ {[%clk 0:00:53]}  Bxf6 {[%clk 0:00:43]} 28. Bxf6 {[%clk 0:00:54]} 1-0


[Site "https://www.chess.com"]

[Event "Titled Tuesday Blitz April 18 Early 2023"]
[White "Tomaszewski, Kacper"]
[Black "Koutsin, Sergey"]
[WhiteFideId "1127373"]
[BlackFideId "14101483"]
[WhiteElo "2211"]
[BlackElo "2381"]
[Result "1-0"]
[Round "07"]
[TimeControl "180+2"]
[Date "2023.04.18"]
[WhiteClock "0:00:34"]
[BlackClock "0:00:01"]

1. e4 {[%clk 0:03:00]}  e6 {[%clk 0:02:48]} 2. Nf3 {[%clk 0:02:59]}  d5 {[%clk 0:02:48]} 3. e5 {[%clk 0:03:00]}  c5 {[%clk 0:02:48]} 4. c3 {[%clk 0:03:00]}  Nc6 {[%clk 0:02:47]} 5. Na3 {[%clk 0:02:59]}  Nge7 {[%clk 0:02:42]} 6. Nc2 {[%clk 0:02:59]}  Ng6 {[%clk 0:02:23]} 7. d4 {[%clk 0:02:59]}  f6 {[%clk 0:02:19]} 8. exf6 {[%clk 0:02:56]}  Qxf6 {[%clk 0:02:18]} 9. Bg5 {[%clk 0:02:52]}  Qf7 {[%clk 0:02:18]} 10. Bb5 {[%clk 0:02:48]}  Bd6 {[%clk 0:02:17]} 11. dxc5 {[%clk 0:02:45]}  Bxc5 {[%clk 0:02:17]} 12. O-O {[%clk 0:02:45]}  O-O {[%clk 0:02:12]} 13. c4 {[%clk 0:02:34]}  a6 {[%clk 0:02:06]} 14. cxd5 {[%clk 0:02:32]}  exd5 {[%clk 0:02:05]} 15. Be2 {[%clk 0:02:13]}  Bf5 {[%clk 0:01:24]} 16. Ne3 {[%clk 0:02:10]}  Be6 {[%clk 0:01:19]} 17. Rc1 {[%clk 0:02:06]}  Bd6 {[%clk 0:01:08]} 18. Nc2 {[%clk 0:01:27]}  h6 {[%clk 0:01:07]} 19. Be3 {[%clk 0:01:18]}  Nf4 {[%clk 0:01:06]} 20. Bxf4 {[%clk 0:01:03]}  Bxf4 {[%clk 0:01:03]} 21. Ra1 {[%clk 0:01:00]}  Qf6 {[%clk 0:00:39]} 22. Ncd4 {[%clk 0:00:59]}  Nxd4 {[%clk 0:00:20]} 23. Qxd4 {[%clk 0:00:58]}  Rac8 {[%clk 0:00:18]} 24. Qxf6 {[%clk 0:00:52]}  Rxf6 {[%clk 0:00:17]} 25. Bd3 {[%clk 0:00:53]}  Bf7 {[%clk 0:00:12]} 26. Rfe1 {[%clk 0:00:51]}  Kf8 {[%clk 0:00:11]} 27. Nd4 {[%clk 0:00:47]}  g6 {[%clk 0:00:10]} 28. g3 {[%clk 0:00:46]}  Bb8 {[%clk 0:00:09]} 29. Rac1 {[%clk 0:00:46]}  Rd8 {[%clk 0:00:06]} 30. Kg2 {[%clk 0:00:37]}  Ba7 {[%clk 0:00:06]} 31. Nf3 {[%clk 0:00:37]}  g5 {[%clk 0:00:02]} 32. h3 {[%clk 0:00:37]}  d4 {[%clk 0:00:01]} 33. Be4 {[%clk 0:00:34]} 1-0


[Site "https://www.chess.com"]

[Event "Titled Tuesday Blitz April 18 Early 2023"]
[White "Davidson, Kevin"]
[Black "Reprintsev, Alexander"]
[WhiteFideId "2056810"]
[BlackFideId "14100541"]
[WhiteElo "2151"]
[BlackElo "2211"]
[Result "0-1"]
[Round "07"]
[TimeControl "180+2"]
[Date "2023.04.18"]
[WhiteClock "0:00:02"]
[BlackClock "0:00:15"]

1. e4 {[%clk 0:03:00]}  d5 {[%clk 0:02:38]} 2. exd5 {[%clk 0:03:00]}  Qxd5 {[%clk 0:02:37]} 3. Nc3 {[%clk 0:03:00]}  Qa5 {[%clk 0:02:37]} 4. Bc4 {[%clk 0:03:00]}  Nf6 {[%clk 0:02:37]} 5. d3 {[%clk 0:03:01]}  Bg4 {[%clk 0:02:36]} 6. f3 {[%clk 0:03:00]}  Be6 {[%clk 0:02:37]} 7. Bxe6 {[%clk 0:02:57]}  fxe6 {[%clk 0:02:38]} 8. Qe2 {[%clk 0:02:52]}  Nc6 {[%clk 0:02:38]} 9. Be3 {[%clk 0:02:39]}  Nd5 {[%clk 0:02:37]} 10. Bd2 {[%clk 0:02:35]}  Nd4 {[%clk 0:02:32]} 11. Qd1 {[%clk 0:02:35]}  Nb4 {[%clk 0:02:19]} 12. Rc1 {[%clk 0:02:34]}  O-O-O {[%clk 0:02:05]} 13. Nge2 {[%clk 0:02:26]}  Ndxc2+ {[%clk 0:01:57]} 14. Rxc2 {[%clk 0:02:25]}  Nxd3+ {[%clk 0:01:29]} 15. Kf1 {[%clk 0:02:25]}  Qb6 {[%clk 0:01:27]} 16. Ne4 {[%clk 0:02:13]}  g6 {[%clk 0:01:26]} 17. Bc3 {[%clk 0:02:03]}  e5 {[%clk 0:01:10]} 18. Rd2 {[%clk 0:02:01]}  Qb5 {[%clk 0:01:00]} 19. Nf2 {[%clk 0:01:30]}  Bh6 {[%clk 0:00:55]} 20. Rxd3 {[%clk 0:01:28]}  e4 {[%clk 0:00:55]} 21. fxe4 {[%clk 0:01:11]}  Rhf8 {[%clk 0:00:51]} 22. Rxd8+ {[%clk 0:01:00]}  Rxd8 {[%clk 0:00:52]} 23. Qb3 {[%clk 0:00:58]}  Qa6 {[%clk 0:00:49]} 24. a4 {[%clk 0:00:49]}  Bd2 {[%clk 0:00:45]} 25. Qb5 {[%clk 0:00:48]}  Qe6 {[%clk 0:00:44]} 26. Nd4 {[%clk 0:00:31]}  Qa2 {[%clk 0:00:44]} 27. Bxd2 {[%clk 0:00:29]}  Rxd4 {[%clk 0:00:44]} 28. Be1 {[%clk 0:00:17]}  c6 {[%clk 0:00:44]} 29. Qa5 {[%clk 0:00:14]}  Qc4+ {[%clk 0:00:44]} 30. Kg1 {[%clk 0:00:11]}  b6 {[%clk 0:00:20]} 31. Qc3 {[%clk 0:00:11]}  Qxa4 {[%clk 0:00:18]} 32. h4 {[%clk 0:00:10]}  Rc4 {[%clk 0:00:17]} 33. Qe3 {[%clk 0:00:07]}  Qc2 {[%clk 0:00:16]} 34. Rh3 {[%clk 0:00:07]}  Qxb2 {[%clk 0:00:16]} 35. Rf3 {[%clk 0:00:07]}  Kb7 {[%clk 0:00:16]} 36. Rf7 {[%clk 0:00:06]}  Qe5 {[%clk 0:00:16]} 37. Qf3 {[%clk 0:00:03]}  a5 {[%clk 0:00:15]} 38. Ng4 {[%clk 0:00:03]}  Qe6 {[%clk 0:00:14]} 39. Bg3 {[%clk 0:00:02]}  Rxe4 {[%clk 0:00:14]} 40. Rxh7 {[%clk 0:00:02]}  a4 {[%clk 0:00:14]} 41. Qf7 {[%clk 0:00:02]}  Qxf7 {[%clk 0:00:13]} 42. Rxf7 {[%clk 0:00:03]}  Rxg4 {[%clk 0:00:13]} 43. Rxe7+ {[%clk 0:00:03]}  Ka6 {[%clk 0:00:13]} 44. Bf2 {[%clk 0:00:03]}  a3 {[%clk 0:00:13]} 45. Re8 {[%clk 0:00:02]}  Kb5 {[%clk 0:00:13]} 46. Ra8 {[%clk 0:00:02]}  Ra4 {[%clk 0:00:13]} 47. Rxa4 {[%clk 0:00:02]}  Kxa4 {[%clk 0:00:13]} 48. Bd4 {[%clk 0:00:02]}  c5 {[%clk 0:00:13]} 49. Be5 {[%clk 0:00:01]}  b5 {[%clk 0:00:13]} 50. g4 {[%clk 0:00:02]}  b4 {[%clk 0:00:14]} 51. h5 {[%clk 0:00:02]}  gxh5 {[%clk 0:00:13]} 52. gxh5 {[%clk 0:00:03]}  b3 {[%clk 0:00:13]} 53. h6 {[%clk 0:00:03]}  b2 {[%clk 0:00:14]} 54. h7 {[%clk 0:00:02]}  b1=Q+ {[%clk 0:00:14]} 55. Kg2 {[%clk 0:00:02]}  Qxh7 {[%clk 0:00:15]} 0-1


[Site "https://www.chess.com"]